Workbook

Sheet Req. Análises
A1: FI-GAT-01.V03 | C1: Entidade Requisitante : | E1: Orçamento/Req. N.º: | K1: Grupos base modelos | AA1: Tipo_de_amostra | AB1: Águas_de_Consumo_Humano | AC1: Águas_Subterrâneas_ACH | AD1: Águas_Superficiais_ACH | AE1: Águas_Residuais | AF1: Águas_Residuais_Industriais | AG1: Lixiviado | AH1: Águas_Subterrâneas | AI1: Águas_Superficiais | AJ1: Águas_de_Piscina | AK1: Águas_Balneares_Marítimas | AL1: Águas_Balneares_Fluviais | AM1: Águas_Doces_Piscícolas | AN1: Águas_de_Rega | AO1: Águas_Pluviais | AP1: Lamas | AQ1: Resíduo_Sólido | AR1: Solos | AS1: Eluato (Decreto Lei 183/2009)_Inertes, tabela nº2 | AT1: Eluato (Decreto Lei 183/2009)_N.Perig., tabela nº4 | BK1: MESSAGENS A CONSTAR NOS ALERTAS
B2: Hora Colheita (24:00) | C2: Data Colheita (dd-mm-aaaa) | D2: Tipo de amostra | E2: Área/Zona | F2: Nome Ponto/Designação amostra | G2: Parâmetros | H2: Observações | I2: Preço | K2: Águas de Consumo Humano (D.L. N.º 306 de 2007 e 152 de 2017) | M2: Águas Brutas (D.L. N.º 236/98) | O2: Piscinas | P2: Residuais | AA2: Águas_de_Consumo_Humano | BC2: search | BK2: Caixa de selecção | BL2: Mensagens de alerta | BM2: Escritos diretamente na requsição | BN2: Mensagens de alerta
K3: CR1 | L3: E. Coli | M3: G1 | N3: Coliformes Fecais | O3: pH | P3: Aplicação de Amostrador Automático | BA3: =IF(IFERROR(SEARCH($BB$1,BB3,1),0)>0,MAX(BA$2:BA2)+1,0) -> 1 | BB3: 1,2-Dicloroetano | BC3: =IFERROR(VLOOKUP(ROWS(BC$3:BC3),$BA$3:$BB$292,2,0),"") -> 1,2-Dicloroetano | BK3: Pesticidas Totais | BL3: ver célula BN3 | BM3: Pesticidas Totais | BN3: É necessário inserir os pesticidas individuais da zona geográfica correspondente.
L4: Bactérias Coliformes | N4: Coliformes Totais | O4: Condutividade | P4: Colheita residual composta_CESAB | BA4: =IF(IFERROR(SEARCH($BB$1,BB4,1),0)>0,MAX(BA$2:BA3)+1,0) -> 2 | BB4: Absorvância a 254nm | BC4: =IFERROR(VLOOKUP(ROWS(BC$3:BC4),$BA$3:$BB$292,2,0),"") -> Absorvância a 254nm | BM4: Pesticidas
L5: Desinfetante residual | N5: pH | O5: Cloro Residual Livre | P5: Colheita residual simples_ CESAB | BA5: =IF(IFERROR(SEARCH($BB$1,BB5,1),0)>0,MAX(BA$2:BA4)+1,0) -> 3 | BB5: Acenafteno | BC5: =IFERROR(VLOOKUP(ROWS(BC$3:BC5),$BA$3:$BB$292,2,0),"") -> Acenafteno | BK5: Trihalometanos | BL5: ATENÇÃO: Compostos individuais; Clorofórmio; Bromofórmio; Dibromoclorometano; Bromodiclorometano; automaticamente inseridos | BM5: THM | BN5: É necessário inserir os parâmetros individuais: Clorofórmio; Bromofórmio; Dibromoclorometano; Bromodiclorometano,
K6: CR2_ incluir os parâmetros do grupo CR1 | L6: Cheiro | N6: Oxigénio dissolvido (%) | O6: Cloro Residual Total | P6: CBO | BA6: =IF(IFERROR(SEARCH($BB$1,BB6,1),0)>0,MAX(BA$2:BA5)+1,0) -> 4 | BB6: Acenaftileno | BC6: =IFERROR(VLOOKUP(ROWS(BC$3:BC6),$BA$3:$BB$292,2,0),"") -> Acenaftileno | BM6: Trihalometanos
L7: Sabor | N7: Carência Bioquímica de Oxigénio | O7: Coliformes Totais | P7: CQO | BA7: =IF(IFERROR(SEARCH($BB$1,BB7,1),0)>0,MAX(BA$2:BA6)+1,0) -> 5 | BB7: Ácido Isocianúrico | BC7: =IFERROR(VLOOKUP(ROWS(BC$3:BC7),$BA$3:$BB$292,2,0),"") -> Ácido Isocianúrico | BK7: Hidrocarbonetos Aromáticos Policíclicos (HAP) | BL7: ATENÇÃO:Compostos individuais Benzo[b]fluoranteno;Benzo[k]fluoranteno;Benzo[ghi]perileno;Indeno[1,2,3-cd]pireno; automaticamente inseridos. | BM7: Hidrocarbonteos Aromáticos | BN7: É necessário inserir os parâmetros individuais: Benzo[b]fluoranteno; Benzo[k]fluoranteno; Benzo[ghi]perileno e Indeno[1,2,3-cd]pireno. | BO7: Se for água bruta deverá inserir também o parâmetro Fluoranteno.
L8: pH | N8: Carência Quimica de Oxigénio | O8: Escherichia Coli | P8: SST | BA8: =IF(IFERROR(SEARCH($BB$1,BB8,1),0)>0,MAX(BA$2:BA7)+1,0) -> 6 | BB8: Ácidos Gordos Voláteis | BC8: =IFERROR(VLOOKUP(ROWS(BC$3:BC8),$BA$3:$BB$292,2,0),"") -> Ácidos Gordos Voláteis | BM8: HAP
L9: Condutividade | N9: Sólidos Suspensos Totais | O9: Pseudomonas Aeruginosa | P9: pH | BA9: =IF(IFERROR(SEARCH($BB$1,BB9,1),0)>0,MAX(BA$2:BA8)+1,0) -> 7 | BB9: Ácidos Húmicos | BC9: =IFERROR(VLOOKUP(ROWS(BC$3:BC9),$BA$3:$BB$292,2,0),"") -> Ácidos Húmicos | BK9: Legionella spp. | BL9: Ver célula BN9 | BM9: Legionela | BN9: É necessário inserir o parâmetro Legionella pneumophila.
L10: Cor | N10: Cor | O10: Estafilococos Produtores de Coagulase | P10: Azoto Total | BA10: =IF(IFERROR(SEARCH($BB$1,BB10,1),0)>0,MAX(BA$2:BA9)+1,0) -> 8 | BB10: Acrilamida | BC10: =IFERROR(VLOOKUP(ROWS(BC$3:BC10),$BA$3:$BB$292,2,0),"") -> Acrilamida | BM10: Legionella
L11: Turvação | N11: Temperatura | O11: Estafilococos Totais | P11: Fósforo Total | BA11: =IF(IFERROR(SEARCH($BB$1,BB11,1),0)>0,MAX(BA$2:BA10)+1,0) -> 9 | BB11: Alacloro | BC11: =IFERROR(VLOOKUP(ROWS(BC$3:BC11),$BA$3:$BB$292,2,0),"") -> Alacloro | BM11: legionela
L12: Enterococos | N12: Condutividade | O12: Enterococos Fecais | P12: Óleos e gorduras | BA12: =IF(IFERROR(SEARCH($BB$1,BB12,1),0)>0,MAX(BA$2:BA11)+1,0) -> 10 | BB12: Alcalinidade à Fenolftaleína | BC12: =IFERROR(VLOOKUP(ROWS(BC$3:BC12),$BA$3:$BB$292,2,0),"") -> Alcalinidade à Fenolftaleína | BK12: Legionella spp. | BL12: ATENÇÃO: O parâmetro Legionella pneumophila foi automaticamente inserido | BM12: Legionella pneumophila | BO12: Não pode existir a designação "Legionella pneumophila"
L13: Número de colónias a 22 ºC | N13: Cheiro, a 25 ºC | O13: Número de Colónias a 36 ºC | P13: Colheita residual composta_Cliente | BA13: =IF(IFERROR(SEARCH($BB$1,BB13,1),0)>0,MAX(BA$2:BA12)+1,0) -> 11 | BB13: Alcalinidade Total | BC13: =IFERROR(VLOOKUP(ROWS(BC$3:BC13),$BA$3:$BB$292,2,0),"") -> Alcalinidade Total | BM13: Legionella pneumophila | BN13: É necessário inserir o parâmetro Legionella spp.
L14: Número de colónias a 36 ºC | N14: Nitrato | P14: Colheita residual simples_ Cliente | BA14: =IF(IFERROR(SEARCH($BB$1,BB14,1),0)>0,MAX(BA$2:BA13)+1,0) -> 12 | BB14: Aldeídos | BC14: =IFERROR(VLOOKUP(ROWS(BC$3:BC14),$BA$3:$BB$292,2,0),"") -> Aldeídos | BM14: Legionela pneumofila | BN14: É necessário inserir o parâmetro Legionella spp.
K15: CI_incluir os parâmetros do CR1+CR2 | L15: Clostridium perfringens | N15: Azoto Amoniacal | P15: Azoto Total_[Amostragem Pontual] | BA15: =IF(IFERROR(SEARCH($BB$1,BB15,1),0)>0,MAX(BA$2:BA14)+1,0) -> 13 | BB15: Alfa-total | BC15: =IFERROR(VLOOKUP(ROWS(BC$3:BC15),$BA$3:$BB$292,2,0),"") -> Alfa-total | BM15: Legionela pneumophila | BN15: É necessário inserir o parâmetro Legionella spp.
L16: Alumínio | N16: Cloreto | P16: Detergentes_[Amostragem Pontual] | BA16: =IF(IFERROR(SEARCH($BB$1,BB16,1),0)>0,MAX(BA$2:BA15)+1,0) -> 14 | BB16: Alumínio | BC16: =IFERROR(VLOOKUP(ROWS(BC$3:BC16),$BA$3:$BB$292,2,0),"") -> Alumínio | BK16: Colheita residual composta_CESAB | BL16: ATENÇÃO: Foi adicionado o parâmetro "Aplicação de Amostrador Automático". A data, desta linha, deve ser alterada para o dia anterior ao levantamento da colheita composta das 24h. | BM16: Colheita composta; composta | BN16: Sempre que se pretenda uma colheita composta deve ser incluido o parâmetro "Aplicação de Amostrador Automático" no dia anterior.
L17: Amónia | N17: Fosfato | P17: Fósforo Total_[Amostragem Pontual] | BA17: =IF(IFERROR(SEARCH($BB$1,BB17,1),0)>0,MAX(BA$2:BA16)+1,0) -> 15 | BB17: Amónio | BC17: =IFERROR(VLOOKUP(ROWS(BC$3:BC17),$BA$3:$BB$292,2,0),"") -> Amónio | BM17: Salmonela | BN17: Indicar qual dos seguintes parâmetros deve ser considerado: Salmonela (5000 mL) ou Salmonela (1000 mL)
L18: Antimónio | M18: G2_Incluir os parâmetros do grupo G1 | N18: Ferro dissolvido | P18: Óleos e Gorduras [Amostragem Pontual] | BA18: =IF(IFERROR(SEARCH($BB$1,BB18,1),0)>0,MAX(BA$2:BA17)+1,0) -> 16 | BB18: Antimónio | BC18: =IFERROR(VLOOKUP(ROWS(BC$3:BC18),$BA$3:$BB$292,2,0),"") -> Antimónio | BM18: salmonela
L19: Arsénio | N19: Manganês | P19: pH [Amostragem Pontual] | BA19: =IF(IFERROR(SEARCH($BB$1,BB19,1),0)>0,MAX(BA$2:BA18)+1,0) -> 17 | BB19: Antraceno | BC19: =IFERROR(VLOOKUP(ROWS(BC$3:BC19),$BA$3:$BB$292,2,0),"") -> Antraceno | BM19: Salmonella
L20: Benzeno | N20: Cobre | P20: Temperatura [Amostra pontual] | BA20: =IF(IFERROR(SEARCH($BB$1,BB20,1),0)>0,MAX(BA$2:BA19)+1,0) -> 18 | BB20: AOX | BC20: =IFERROR(VLOOKUP(ROWS(BC$3:BC20),$BA$3:$BB$292,2,0),"") -> AOX
L21: Benzo(a)pireno | N21: Zinco | BA21: =IF(IFERROR(SEARCH($BB$1,BB21,1),0)>0,MAX(BA$2:BA20)+1,0) -> 19 | BB21: Arsénio | BC21: =IFERROR(VLOOKUP(ROWS(BC$3:BC21),$BA$3:$BB$292,2,0),"") -> Arsénio | BK21: Dose Indicativa_Cálculo_Radionuclídeos | BL21: ATENÇÃO: Foram adicionados os radionuclídeos emissores de radição alfa; Polónio 210; Rádio226; Urânio 234 e Urânio 238
L22: Boro | N22: Sulfatos | BA22: =IF(IFERROR(SEARCH($BB$1,BB22,1),0)>0,MAX(BA$2:BA21)+1,0) -> 20 | BB22: Atrazina | BC22: =IFERROR(VLOOKUP(ROWS(BC$3:BC22),$BA$3:$BB$292,2,0),"") -> Atrazina | BK22: Para os tipos de amostras Águas Residuais, Residuais industriais e Lixiviados é necessário escolher o tipo de colheita (simples/composta-CESAB/Cliente). Para os outros tipos de amostra não é necessário incluir os parâmetros "Colheita pelo CESAB_F.Q./Micro".
L23: Bromatos | N23: Substâncias Tensioactivas | BA23: =IF(IFERROR(SEARCH($BB$1,BB23,1),0)>0,MAX(BA$2:BA22)+1,0) -> 21 | BB23: Azoto Amoniacal | BC23: =IFERROR(VLOOKUP(ROWS(BC$3:BC23),$BA$3:$BB$292,2,0),"") -> Azoto Amoniacal | BK23: Águas_Residuais | BL23: É necessário escolher o parâmetro de colheita residual(simples/composta) a considerar.
L24: Cádmio | N24: Azoto Kjeldahl | BA24: =IF(IFERROR(SEARCH($BB$1,BB24,1),0)>0,MAX(BA$2:BA23)+1,0) -> 22 | BB24: Azoto Kjeldahl | BC24: =IFERROR(VLOOKUP(ROWS(BC$3:BC24),$BA$3:$BB$292,2,0),"") -> Azoto Kjeldahl | BK24: Águas_Residuais_Industriais
L25: Cálcio | N25: Estreptococos fecais (Enterocos) | BA25: =IF(IFERROR(SEARCH($BB$1,BB25,1),0)>0,MAX(BA$2:BA24)+1,0) -> 23 | BB25: Azoto Nitrico | BC25: =IFERROR(VLOOKUP(ROWS(BC$3:BC25),$BA$3:$BB$292,2,0),"") -> Azoto Nitrico | BK25: Lixiviado
L26: Carbono orgânico total | M26: G3_ incluir os parâmetros do G1+ G2 | N26: Fluoretos | BA26: =IF(IFERROR(SEARCH($BB$1,BB26,1),0)>0,MAX(BA$2:BA25)+1,0) -> 24 | BB26: Azoto Orgânico | BC26: =IFERROR(VLOOKUP(ROWS(BC$3:BC26),$BA$3:$BB$292,2,0),"") -> Azoto Orgânico | BM26: Paratião | BN26: Indicar se pretende o Paratião-etil e/ou Paratião-metil.
L27: Cianetos | N27: Boro | BA27: =IF(IFERROR(SEARCH($BB$1,BB27,1),0)>0,MAX(BA$2:BA26)+1,0) -> 25 | BB27: Azoto Total | BC27: =IFERROR(VLOOKUP(ROWS(BC$3:BC27),$BA$3:$BB$292,2,0),"") -> Azoto Total | BM27: paratião
L28: Cloretos | N28: Arsénio | BA28: =IF(IFERROR(SEARCH($BB$1,BB28,1),0)>0,MAX(BA$2:BA27)+1,0) -> 26 | BB28: Azoto Total_[Amostragem Pontual] | BC28: =IFERROR(VLOOKUP(ROWS(BC$3:BC28),$BA$3:$BB$292,2,0),"") -> Azoto Total_[Amostragem Pontual] | BK28: Águas_de_Consumo_Humano | BL28: Se requisitados parâmetros microbiológicos no âmbito do PCQA/Análises de verificação incluir o parâmetro "Desinfetante residual" ou "Desinfetante Residual_Cliente"
L29: Cloritos | N29: Cádmio | BA29: =IF(IFERROR(SEARCH($BB$1,BB29,1),0)>0,MAX(BA$2:BA28)+1,0) -> 27 | BB29: Bactérias Coliformes | BC29: =IFERROR(VLOOKUP(ROWS(BC$3:BC29),$BA$3:$BB$292,2,0),"") -> Bactérias Coliformes
L30: Cloratos | N30: Crómio Total | BA30: =IF(IFERROR(SEARCH($BB$1,BB30,1),0)>0,MAX(BA$2:BA29)+1,0) -> 28 | BB30: Bário | BC30: =IFERROR(VLOOKUP(ROWS(BC$3:BC30),$BA$3:$BB$292,2,0),"") -> Bário
L31: Chumbo sem purga | N31: Chumbo | BA31: =IF(IFERROR(SEARCH($BB$1,BB31,1),0)>0,MAX(BA$2:BA30)+1,0) -> 29 | BB31: Bentazona | BC31: =IFERROR(VLOOKUP(ROWS(BC$3:BC31),$BA$3:$BB$292,2,0),"") -> Bentazona
L32: Níquel sem purga | N32: Selénio | BA32: =IF(IFERROR(SEARCH($BB$1,BB32,1),0)>0,MAX(BA$2:BA31)+1,0) -> 30 | BB32: Benzeno | BC32: =IFERROR(VLOOKUP(ROWS(BC$3:BC32),$BA$3:$BB$292,2,0),"") -> Benzeno
L33: Cobre sem purga | N33: Mercúrio | BA33: =IF(IFERROR(SEARCH($BB$1,BB33,1),0)>0,MAX(BA$2:BA32)+1,0) -> 31 | BB33: Benzo(a)pireno | BC33: =IFERROR(VLOOKUP(ROWS(BC$3:BC33),$BA$3:$BB$292,2,0),"") -> Benzo(a)pireno
L34: Crómio | N34: Bário | BA34: =IF(IFERROR(SEARCH($BB$1,BB34,1),0)>0,MAX(BA$2:BA33)+1,0) -> 32 | BB34: Benzo(b)fluoranteno | BC34: =IFERROR(VLOOKUP(ROWS(BC$3:BC34),$BA$3:$BB$292,2,0),"") -> Benzo(b)fluoranteno
L35: 1,2 – dicloroetano | N35: Cianetos | BA35: =IF(IFERROR(SEARCH($BB$1,BB35,1),0)>0,MAX(BA$2:BA34)+1,0) -> 33 | BB35: Benzo(ghi)perileno | BC35: =IFERROR(VLOOKUP(ROWS(BC$3:BC35),$BA$3:$BB$292,2,0),"") -> Benzo(ghi)perileno
L36: Dureza total | N36: Hidrocarbonetos Dissolvidos e Emulsionados | BA36: =IF(IFERROR(SEARCH($BB$1,BB36,1),0)>0,MAX(BA$2:BA35)+1,0) -> 34 | BB36: Benzo(k)fluoranteno | BC36: =IFERROR(VLOOKUP(ROWS(BC$3:BC36),$BA$3:$BB$292,2,0),"") -> Benzo(k)fluoranteno
L37: Ferro | N37: Hidrocarbonteos Aromáticos Polinucleares | BA37: =IF(IFERROR(SEARCH($BB$1,BB37,1),0)>0,MAX(BA$2:BA36)+1,0) -> 35 | BB37: Berílio | BC37: =IFERROR(VLOOKUP(ROWS(BC$3:BC37),$BA$3:$BB$292,2,0),"") -> Berílio
L38: Fluoretos | N38: Benzo[b]fluoranteno | BA38: =IF(IFERROR(SEARCH($BB$1,BB38,1),0)>0,MAX(BA$2:BA37)+1,0) -> 36 | BB38: Beta Total | BC38: =IFERROR(VLOOKUP(ROWS(BC$3:BC38),$BA$3:$BB$292,2,0),"") -> Beta Total
L39: HAP | N39: Benzo[k]fluoranteno | BA39: =IF(IFERROR(SEARCH($BB$1,BB39,1),0)>0,MAX(BA$2:BA38)+1,0) -> 37 | BB39: Bicarbonato | BC39: =IFERROR(VLOOKUP(ROWS(BC$3:BC39),$BA$3:$BB$292,2,0),"") -> Bicarbonato
L40: Benzo[b]fluoranteno | N40: Benzo[ghi]perileno | BA40: =IF(IFERROR(SEARCH($BB$1,BB40,1),0)>0,MAX(BA$2:BA39)+1,0) -> 38 | BB40: Biovolume Fitoplantónico Total | BC40: =IFERROR(VLOOKUP(ROWS(BC$3:BC40),$BA$3:$BB$292,2,0),"") -> Biovolume Fitoplantónico Total
L41: Benzo[k]fluoranteno | N41: Indeno[1,2,3-cd]pireno | BA41: =IF(IFERROR(SEARCH($BB$1,BB41,1),0)>0,MAX(BA$2:BA40)+1,0) -> 39 | BB41: Boro | BC41: =IFERROR(VLOOKUP(ROWS(BC$3:BC41),$BA$3:$BB$292,2,0),"") -> Boro
L42: Benzo[ghi]perileno | N42: Fluoranteno | BA42: =IF(IFERROR(SEARCH($BB$1,BB42,1),0)>0,MAX(BA$2:BA41)+1,0) -> 40 | BB42: Bromatos | BC42: =IFERROR(VLOOKUP(ROWS(BC$3:BC42),$BA$3:$BB$292,2,0),"") -> Bromatos
L43: Indeno[1,2,3-cd]pireno | N43: Pesticidas Totais | O43: -->Especificar compostos individuais | BA43: =IF(IFERROR(SEARCH($BB$1,BB43,1),0)>0,MAX(BA$2:BA42)+1,0) -> 41 | BB43: Brometo | BC43: =IFERROR(VLOOKUP(ROWS(BC$3:BC43),$BA$3:$BB$292,2,0),"") -> Brometo
L44: Manganês | N44: Substâncias Extraíveis com clorofórmio | BA44: =IF(IFERROR(SEARCH($BB$1,BB44,1),0)>0,MAX(BA$2:BA43)+1,0) -> 42 | BB44: Bromo | BC44: =IFERROR(VLOOKUP(ROWS(BC$3:BC44),$BA$3:$BB$292,2,0),"") -> Bromo
L45: Nitratos | N45: Salmonella_1 Litro | BA45: =IF(IFERROR(SEARCH($BB$1,BB45,1),0)>0,MAX(BA$2:BA44)+1,0) -> 43 | BB45: Bromodiclorometano | BC45: =IFERROR(VLOOKUP(ROWS(BC$3:BC45),$BA$3:$BB$292,2,0),"") -> Bromodiclorometano
L46: Nitritos | N46: Salmonella_5 Litro | BA46: =IF(IFERROR(SEARCH($BB$1,BB46,1),0)>0,MAX(BA$2:BA45)+1,0) -> 44 | BB46: Bromofórmio | BC46: =IFERROR(VLOOKUP(ROWS(BC$3:BC46),$BA$3:$BB$292,2,0),"") -> Bromofórmio
L47: Mercúrio | BA47: =IF(IFERROR(SEARCH($BB$1,BB47,1),0)>0,MAX(BA$2:BA46)+1,0) -> 45 | BB47: BTEX | BC47: =IFERROR(VLOOKUP(ROWS(BC$3:BC47),$BA$3:$BB$292,2,0),"") -> BTEX
L48: Oxidabilidade | BA48: =IF(IFERROR(SEARCH($BB$1,BB48,1),0)>0,MAX(BA$2:BA47)+1,0) -> 46 | BB48: Cádmio | BC48: =IFERROR(VLOOKUP(ROWS(BC$3:BC48),$BA$3:$BB$292,2,0),"") -> Cádmio
L49: Pesticidas ( total) | M49: -->Especificar compostos individuais correspondentes ao concelho. | BA49: =IF(IFERROR(SEARCH($BB$1,BB49,1),0)>0,MAX(BA$2:BA48)+1,0) -> 47 | BB49: Cálcio | BC49: =IFERROR(VLOOKUP(ROWS(BC$3:BC49),$BA$3:$BB$292,2,0),"") -> Cálcio
L50: Selénio | BA50: =IF(IFERROR(SEARCH($BB$1,BB50,1),0)>0,MAX(BA$2:BA49)+1,0) -> 48 | BB50: Cálcio Total | BC50: =IFERROR(VLOOKUP(ROWS(BC$3:BC50),$BA$3:$BB$292,2,0),"") -> Cálcio Total
L51: Sódio | BA51: =IF(IFERROR(SEARCH($BB$1,BB51,1),0)>0,MAX(BA$2:BA50)+1,0) -> 49 | BB51: Cálculo da DI_Radionuclídeos | BC51: =IFERROR(VLOOKUP(ROWS(BC$3:BC51),$BA$3:$BB$292,2,0),"") -> Cálculo da DI_Radionuclídeos
L52: Sulfatos | BA52: =IF(IFERROR(SEARCH($BB$1,BB52,1),0)>0,MAX(BA$2:BA51)+1,0) -> 50 | BB52: Carbonato | BC52: =IFERROR(VLOOKUP(ROWS(BC$3:BC52),$BA$3:$BB$292,2,0),"") -> Carbonato
L53: Soma do Tetracloroeteno e Tricloroeteno | BA53: =IF(IFERROR(SEARCH($BB$1,BB53,1),0)>0,MAX(BA$2:BA52)+1,0) -> 51 | BB53: Carbono Orgânico Dissolvido | BC53: =IFERROR(VLOOKUP(ROWS(BC$3:BC53),$BA$3:$BB$292,2,0),"") -> Carbono Orgânico Dissolvido
L54: Tetracloroeteno | BA54: =IF(IFERROR(SEARCH($BB$1,BB54,1),0)>0,MAX(BA$2:BA53)+1,0) -> 52 | BB54: Carbono Orgânico Total | BC54: =IFERROR(VLOOKUP(ROWS(BC$3:BC54),$BA$3:$BB$292,2,0),"") -> Carbono Orgânico Total
L55: Tricloroeteno | BA55: =IF(IFERROR(SEARCH($BB$1,BB55,1),0)>0,MAX(BA$2:BA54)+1,0) -> 53 | BB55: Carência Bioquímica de Oxigénio | BC55: =IFERROR(VLOOKUP(ROWS(BC$3:BC55),$BA$3:$BB$292,2,0),"") -> Carência Bioquímica de Oxigénio
L56: Trihalometanos | BA56: =IF(IFERROR(SEARCH($BB$1,BB56,1),0)>0,MAX(BA$2:BA55)+1,0) -> 54 | BB56: Carência Bioquímica de Oxigénio - Solúvel | BC56: =IFERROR(VLOOKUP(ROWS(BC$3:BC56),$BA$3:$BB$292,2,0),"") -> Carência Bioquímica de Oxigénio - Solúvel
L57: clorofórmio | BA57: =IF(IFERROR(SEARCH($BB$1,BB57,1),0)>0,MAX(BA$2:BA56)+1,0) -> 55 | BB57: Carência Quimica de Oxigénio | BC57: =IFERROR(VLOOKUP(ROWS(BC$3:BC57),$BA$3:$BB$292,2,0),"") -> Carência Quimica de Oxigénio
L58: bromofórmio | BA58: =IF(IFERROR(SEARCH($BB$1,BB58,1),0)>0,MAX(BA$2:BA57)+1,0) -> 56 | BB58: Carência Quimica de Oxigénio - Solúvel | BC58: =IFERROR(VLOOKUP(ROWS(BC$3:BC58),$BA$3:$BB$292,2,0),"") -> Carência Quimica de Oxigénio - Solúvel
L59: dibromoclorometano | BA59: =IF(IFERROR(SEARCH($BB$1,BB59,1),0)>0,MAX(BA$2:BA58)+1,0) -> 57 | BB59: CBO | BC59: =IFERROR(VLOOKUP(ROWS(BC$3:BC59),$BA$3:$BB$292,2,0),"") -> CBO
L60: bromodiclorometano | BA60: =IF(IFERROR(SEARCH($BB$1,BB60,1),0)>0,MAX(BA$2:BA59)+1,0) -> 58 | BB60: Césio 137 | BC60: =IFERROR(VLOOKUP(ROWS(BC$3:BC60),$BA$3:$BB$292,2,0),"") -> Césio 137
L61: Dose indicativa | M61: --> Não pressupõe a análise dos radionuclídeos. Resultado inferido a partir do resultado da radiação alfa-total. | BA61: =IF(IFERROR(SEARCH($BB$1,BB61,1),0)>0,MAX(BA$2:BA60)+1,0) -> 59 | BB61: Cheiro (diluição 1:20)-Água residual | BC61: =IFERROR(VLOOKUP(ROWS(BC$3:BC61),$BA$3:$BB$292,2,0),"") -> Cheiro (diluição 1:20)-Água residual
L62: Alfa-total | BA62: =IF(IFERROR(SEARCH($BB$1,BB62,1),0)>0,MAX(BA$2:BA61)+1,0) -> 60 | BB62: Cheiro, a 25ºC-Ág.não residual | BC62: =IFERROR(VLOOKUP(ROWS(BC$3:BC62),$BA$3:$BB$292,2,0),"") -> Cheiro, a 25ºC-Ág.não residual
L63: Beta-total | M63: --> A ERSAR concedeu automaticamente a dispensa da pesquisa deste parâmetro em todos os PE/ZA. | BA63: =IF(IFERROR(SEARCH($BB$1,BB63,1),0)>0,MAX(BA$2:BA62)+1,0) -> 61 | BB63: Chumbo | BC63: =IFERROR(VLOOKUP(ROWS(BC$3:BC63),$BA$3:$BB$292,2,0),"") -> Chumbo
L64: Radão | BA64: =IF(IFERROR(SEARCH($BB$1,BB64,1),0)>0,MAX(BA$2:BA63)+1,0) -> 62 | BB64: Chumbo_PCQA_com Purga | BC64: =IFERROR(VLOOKUP(ROWS(BC$3:BC64),$BA$3:$BB$292,2,0),"") -> Chumbo_PCQA_com Purga
L65: Acrilamida | M65: --> Pode ser controlado(a) pelo cálculo da migração máxima do polímero, se usado, e em função das especificações fornecidas pelo fabricante. | BA65: =IF(IFERROR(SEARCH($BB$1,BB65,1),0)>0,MAX(BA$2:BA64)+1,0) -> 63 | BB65: Chumbo_PCQA_sem Purga | BC65: =IFERROR(VLOOKUP(ROWS(BC$3:BC65),$BA$3:$BB$292,2,0),"") -> Chumbo_PCQA_sem Purga
L66: Epicloridrina | M66: --> Pode ser controlado(a) pelo cálculo da migração máxima do polímero, se usado, e em função das especificações fornecidas pelo fabricante. | BA66: =IF(IFERROR(SEARCH($BB$1,BB66,1),0)>0,MAX(BA$2:BA65)+1,0) -> 64 | BB66: Cianeto | BC66: =IFERROR(VLOOKUP(ROWS(BC$3:BC66),$BA$3:$BB$292,2,0),"") -> Cianeto
L67: Cloreto de vinilo | M67: --> Pode ser controlado(a) pelo cálculo da migração máxima do polímero, se usado, e em função das especificações fornecidas pelo fabricante. | BA67: =IF(IFERROR(SEARCH($BB$1,BB67,1),0)>0,MAX(BA$2:BA66)+1,0) -> 65 | BB67: Cianeto Livre | BC67: =IFERROR(VLOOKUP(ROWS(BC$3:BC67),$BA$3:$BB$292,2,0),"") -> Cianeto Livre
L68: Trítio | M68: --> A ERSAR concedeu automaticamente a dispensa da pesquisa do Trítio em todos os PE/ZA. | BA68: =IF(IFERROR(SEARCH($BB$1,BB68,1),0)>0,MAX(BA$2:BA67)+1,0) -> 66 | BB68: Cianeto Total | BC68: =IFERROR(VLOOKUP(ROWS(BC$3:BC68),$BA$3:$BB$292,2,0),"") -> Cianeto Total
BA69: =IF(IFERROR(SEARCH($BB$1,BB69,1),0)>0,MAX(BA$2:BA68)+1,0) -> 67 | BB69: Cianobactérias | BC69: =IFERROR(VLOOKUP(ROWS(BC$3:BC69),$BA$3:$BB$292,2,0),"") -> Cianobactérias
BA70: =IF(IFERROR(SEARCH($BB$1,BB70,1),0)>0,MAX(BA$2:BA69)+1,0) -> 68 | BB70: Cimoxanil | BC70: =IFERROR(VLOOKUP(ROWS(BC$3:BC70),$BA$3:$BB$292,2,0),"") -> Cimoxanil
BA71: =IF(IFERROR(SEARCH($BB$1,BB71,1),0)>0,MAX(BA$2:BA70)+1,0) -> 69 | BB71: Clorato | BC71: =IFERROR(VLOOKUP(ROWS(BC$3:BC71),$BA$3:$BB$292,2,0),"") -> Clorato
BA72: =IF(IFERROR(SEARCH($BB$1,BB72,1),0)>0,MAX(BA$2:BA71)+1,0) -> 70 | BB72: Cloreto | BC72: =IFERROR(VLOOKUP(ROWS(BC$3:BC72),$BA$3:$BB$292,2,0),"") -> Cloreto
BA73: =IF(IFERROR(SEARCH($BB$1,BB73,1),0)>0,MAX(BA$2:BA72)+1,0) -> 71 | BB73: Cloreto de Vinilo | BC73: =IFERROR(VLOOKUP(ROWS(BC$3:BC73),$BA$3:$BB$292,2,0),"") -> Cloreto de Vinilo
BA74: =IF(IFERROR(SEARCH($BB$1,BB74,1),0)>0,MAX(BA$2:BA73)+1,0) -> 72 | BB74: Clorito | BC74: =IFERROR(VLOOKUP(ROWS(BC$3:BC74),$BA$3:$BB$292,2,0),"") -> Clorito
BA75: =IF(IFERROR(SEARCH($BB$1,BB75,1),0)>0,MAX(BA$2:BA74)+1,0) -> 73 | BB75: Cloro Combinado | BC75: =IFERROR(VLOOKUP(ROWS(BC$3:BC75),$BA$3:$BB$292,2,0),"") -> Cloro Combinado
BA76: =IF(IFERROR(SEARCH($BB$1,BB76,1),0)>0,MAX(BA$2:BA75)+1,0) -> 74 | BB76: Cloro Orgânico Total Extraível | BC76: =IFERROR(VLOOKUP(ROWS(BC$3:BC76),$BA$3:$BB$292,2,0),"") -> Cloro Orgânico Total Extraível
BA77: =IF(IFERROR(SEARCH($BB$1,BB77,1),0)>0,MAX(BA$2:BA76)+1,0) -> 75 | BB77: Cloro Residual Livre | BC77: =IFERROR(VLOOKUP(ROWS(BC$3:BC77),$BA$3:$BB$292,2,0),"") -> Cloro Residual Livre
BA78: =IF(IFERROR(SEARCH($BB$1,BB78,1),0)>0,MAX(BA$2:BA77)+1,0) -> 76 | BB78: Cloro Residual Total | BC78: =IFERROR(VLOOKUP(ROWS(BC$3:BC78),$BA$3:$BB$292,2,0),"") -> Cloro Residual Total
BA79: =IF(IFERROR(SEARCH($BB$1,BB79,1),0)>0,MAX(BA$2:BA78)+1,0) -> 77 | BB79: Clorofenóis | BC79: =IFERROR(VLOOKUP(ROWS(BC$3:BC79),$BA$3:$BB$292,2,0),"") -> Clorofenóis
BA80: =IF(IFERROR(SEARCH($BB$1,BB80,1),0)>0,MAX(BA$2:BA79)+1,0) -> 78 | BB80: Clorofila a | BC80: =IFERROR(VLOOKUP(ROWS(BC$3:BC80),$BA$3:$BB$292,2,0),"") -> Clorofila a
BA81: =IF(IFERROR(SEARCH($BB$1,BB81,1),0)>0,MAX(BA$2:BA80)+1,0) -> 79 | BB81: Clorofórmio | BC81: =IFERROR(VLOOKUP(ROWS(BC$3:BC81),$BA$3:$BB$292,2,0),"") -> Clorofórmio
BA82: =IF(IFERROR(SEARCH($BB$1,BB82,1),0)>0,MAX(BA$2:BA81)+1,0) -> 80 | BB82: Clorpirifos | BC82: =IFERROR(VLOOKUP(ROWS(BC$3:BC82),$BA$3:$BB$292,2,0),"") -> Clorpirifos
BA83: =IF(IFERROR(SEARCH($BB$1,BB83,1),0)>0,MAX(BA$2:BA82)+1,0) -> 81 | BB83: Clortalonil | BC83: =IFERROR(VLOOKUP(ROWS(BC$3:BC83),$BA$3:$BB$292,2,0),"") -> Clortalonil
BA84: =IF(IFERROR(SEARCH($BB$1,BB84,1),0)>0,MAX(BA$2:BA83)+1,0) -> 82 | BB84: Clortolurão | BC84: =IFERROR(VLOOKUP(ROWS(BC$3:BC84),$BA$3:$BB$292,2,0),"") -> Clortolurão
BA85: =IF(IFERROR(SEARCH($BB$1,BB85,1),0)>0,MAX(BA$2:BA84)+1,0) -> 83 | BB85: Clostrídium Perfringens (incluindo esporos) | BC85: =IFERROR(VLOOKUP(ROWS(BC$3:BC85),$BA$3:$BB$292,2,0),"") -> Clostrídium Perfringens (incluindo esporos)
BA86: =IF(IFERROR(SEARCH($BB$1,BB86,1),0)>0,MAX(BA$2:BA85)+1,0) -> 84 | BB86: Cobalto | BC86: =IFERROR(VLOOKUP(ROWS(BC$3:BC86),$BA$3:$BB$292,2,0),"") -> Cobalto
BA87: =IF(IFERROR(SEARCH($BB$1,BB87,1),0)>0,MAX(BA$2:BA86)+1,0) -> 85 | BB87: Cobre | BC87: =IFERROR(VLOOKUP(ROWS(BC$3:BC87),$BA$3:$BB$292,2,0),"") -> Cobre
BA88: =IF(IFERROR(SEARCH($BB$1,BB88,1),0)>0,MAX(BA$2:BA87)+1,0) -> 86 | BB88: Cobre Dissolvido | BC88: =IFERROR(VLOOKUP(ROWS(BC$3:BC88),$BA$3:$BB$292,2,0),"") -> Cobre Dissolvido
BA89: =IF(IFERROR(SEARCH($BB$1,BB89,1),0)>0,MAX(BA$2:BA88)+1,0) -> 87 | BB89: Cobre_PCQA_com Purga | BC89: =IFERROR(VLOOKUP(ROWS(BC$3:BC89),$BA$3:$BB$292,2,0),"") -> Cobre_PCQA_com Purga
BA90: =IF(IFERROR(SEARCH($BB$1,BB90,1),0)>0,MAX(BA$2:BA89)+1,0) -> 88 | BB90: Cobre_PCQA_sem Purga | BC90: =IFERROR(VLOOKUP(ROWS(BC$3:BC90),$BA$3:$BB$292,2,0),"") -> Cobre_PCQA_sem Purga
BA91: =IF(IFERROR(SEARCH($BB$1,BB91,1),0)>0,MAX(BA$2:BA90)+1,0) -> 89 | BB91: Colheita pelo CESAB_F.Q. | BC91: =IFERROR(VLOOKUP(ROWS(BC$3:BC91),$BA$3:$BB$292,2,0),"") -> Colheita pelo CESAB_F.Q.
BA92: =IF(IFERROR(SEARCH($BB$1,BB92,1),0)>0,MAX(BA$2:BA91)+1,0) -> 90 | BB92: Colheita pelo CESAB_Microbiológica | BC92: =IFERROR(VLOOKUP(ROWS(BC$3:BC92),$BA$3:$BB$292,2,0),"") -> Colheita pelo CESAB_Microbiológica
BA93: =IF(IFERROR(SEARCH($BB$1,BB93,1),0)>0,MAX(BA$2:BA92)+1,0) -> 91 | BB93: Colheita residual composta_CESAB | BC93: =IFERROR(VLOOKUP(ROWS(BC$3:BC93),$BA$3:$BB$292,2,0),"") -> Colheita residual composta_CESAB
BA94: =IF(IFERROR(SEARCH($BB$1,BB94,1),0)>0,MAX(BA$2:BA93)+1,0) -> 92 | BB94: Colheita residual composta_Cliente | BC94: =IFERROR(VLOOKUP(ROWS(BC$3:BC94),$BA$3:$BB$292,2,0),"") -> Colheita residual composta_Cliente
BA95: =IF(IFERROR(SEARCH($BB$1,BB95,1),0)>0,MAX(BA$2:BA94)+1,0) -> 93 | BB95: Colheita residual simples_ CESAB | BC95: =IFERROR(VLOOKUP(ROWS(BC$3:BC95),$BA$3:$BB$292,2,0),"") -> Colheita residual simples_ CESAB
BA96: =IF(IFERROR(SEARCH($BB$1,BB96,1),0)>0,MAX(BA$2:BA95)+1,0) -> 94 | BB96: Colheita residual simples_ Cliente | BC96: =IFERROR(VLOOKUP(ROWS(BC$3:BC96),$BA$3:$BB$292,2,0),"") -> Colheita residual simples_ Cliente
BA97: =IF(IFERROR(SEARCH($BB$1,BB97,1),0)>0,MAX(BA$2:BA96)+1,0) -> 95 | BB97: Coliformes Fecais_Ág. Bruta/residual | BC97: =IFERROR(VLOOKUP(ROWS(BC$3:BC97),$BA$3:$BB$292,2,0),"") -> Coliformes Fecais_Ág. Bruta/residual
BA98: =IF(IFERROR(SEARCH($BB$1,BB98,1),0)>0,MAX(BA$2:BA97)+1,0) -> 96 | BB98: Coliformes Totais_Ág. Bruta/Residual | BC98: =IFERROR(VLOOKUP(ROWS(BC$3:BC98),$BA$3:$BB$292,2,0),"") -> Coliformes Totais_Ág. Bruta/Residual
BA99: =IF(IFERROR(SEARCH($BB$1,BB99,1),0)>0,MAX(BA$2:BA98)+1,0) -> 97 | BB99: Condutividade | BC99: =IFERROR(VLOOKUP(ROWS(BC$3:BC99),$BA$3:$BB$292,2,0),"") -> Condutividade
BA100: =IF(IFERROR(SEARCH($BB$1,BB100,1),0)>0,MAX(BA$2:BA99)+1,0) -> 98 | BB100: Cor | BC100: =IFERROR(VLOOKUP(ROWS(BC$3:BC100),$BA$3:$BB$292,2,0),"") -> Cor
BA101: =IF(IFERROR(SEARCH($BB$1,BB101,1),0)>0,MAX(BA$2:BA100)+1,0) -> 99 | BB101: Cor (diluição 1:20)-Ág. Residual | BC101: =IFERROR(VLOOKUP(ROWS(BC$3:BC101),$BA$3:$BB$292,2,0),"") -> Cor (diluição 1:20)-Ág. Residual
BA102: =IF(IFERROR(SEARCH($BB$1,BB102,1),0)>0,MAX(BA$2:BA101)+1,0) -> 100 | BB102: CQO | BC102: =IFERROR(VLOOKUP(ROWS(BC$3:BC102),$BA$3:$BB$292,2,0),"") -> CQO
BA103: =IF(IFERROR(SEARCH($BB$1,BB103,1),0)>0,MAX(BA$2:BA102)+1,0) -> 101 | BB103: Criseno | BC103: =IFERROR(VLOOKUP(ROWS(BC$3:BC103),$BA$3:$BB$292,2,0),"") -> Criseno
BA104: =IF(IFERROR(SEARCH($BB$1,BB104,1),0)>0,MAX(BA$2:BA103)+1,0) -> 102 | BB104: Crómio | BC104: =IFERROR(VLOOKUP(ROWS(BC$3:BC104),$BA$3:$BB$292,2,0),"") -> Crómio
BA105: =IF(IFERROR(SEARCH($BB$1,BB105,1),0)>0,MAX(BA$2:BA104)+1,0) -> 103 | BB105: Crómio Hexavalente | BC105: =IFERROR(VLOOKUP(ROWS(BC$3:BC105),$BA$3:$BB$292,2,0),"") -> Crómio Hexavalente
BA106: =IF(IFERROR(SEARCH($BB$1,BB106,1),0)>0,MAX(BA$2:BA105)+1,0) -> 104 | BB106: Crómio Trivalente | BC106: =IFERROR(VLOOKUP(ROWS(BC$3:BC106),$BA$3:$BB$292,2,0),"") -> Crómio Trivalente
BA107: =IF(IFERROR(SEARCH($BB$1,BB107,1),0)>0,MAX(BA$2:BA106)+1,0) -> 105 | BB107: Cryptosporidium spp | BC107: =IFERROR(VLOOKUP(ROWS(BC$3:BC107),$BA$3:$BB$292,2,0),"") -> Cryptosporidium spp
BA108: =IF(IFERROR(SEARCH($BB$1,BB108,1),0)>0,MAX(BA$2:BA107)+1,0) -> 106 | BB108: Desetilatrazina | BC108: =IFERROR(VLOOKUP(ROWS(BC$3:BC108),$BA$3:$BB$292,2,0),"") -> Desetilatrazina
BA109: =IF(IFERROR(SEARCH($BB$1,BB109,1),0)>0,MAX(BA$2:BA108)+1,0) -> 107 | BB109: Desetilterbutilazina | BC109: =IFERROR(VLOOKUP(ROWS(BC$3:BC109),$BA$3:$BB$292,2,0),"") -> Desetilterbutilazina
BA110: =IF(IFERROR(SEARCH($BB$1,BB110,1),0)>0,MAX(BA$2:BA109)+1,0) -> 108 | BB110: Desinfectante residual | BC110: =IFERROR(VLOOKUP(ROWS(BC$3:BC110),$BA$3:$BB$292,2,0),"") -> Desinfectante residual
BA111: =IF(IFERROR(SEARCH($BB$1,BB111,1),0)>0,MAX(BA$2:BA110)+1,0) -> 109 | BB111: Desinfetante Residual_Cliente | BC111: =IFERROR(VLOOKUP(ROWS(BC$3:BC111),$BA$3:$BB$292,2,0),"") -> Desinfetante Residual_Cliente
BA112: =IF(IFERROR(SEARCH($BB$1,BB112,1),0)>0,MAX(BA$2:BA111)+1,0) -> 110 | BB112: Detergentes | BC112: =IFERROR(VLOOKUP(ROWS(BC$3:BC112),$BA$3:$BB$292,2,0),"") -> Detergentes
BA113: =IF(IFERROR(SEARCH($BB$1,BB113,1),0)>0,MAX(BA$2:BA112)+1,0) -> 111 | BB113: Detergentes_[Amostragem Pontual] | BC113: =IFERROR(VLOOKUP(ROWS(BC$3:BC113),$BA$3:$BB$292,2,0),"") -> Detergentes_[Amostragem Pontual]
BA114: =IF(IFERROR(SEARCH($BB$1,BB114,1),0)>0,MAX(BA$2:BA113)+1,0) -> 112 | BB114: Diazinão | BC114: =IFERROR(VLOOKUP(ROWS(BC$3:BC114),$BA$3:$BB$292,2,0),"") -> Diazinão
BA115: =IF(IFERROR(SEARCH($BB$1,BB115,1),0)>0,MAX(BA$2:BA114)+1,0) -> 113 | BB115: Dibromoclorometano | BC115: =IFERROR(VLOOKUP(ROWS(BC$3:BC115),$BA$3:$BB$292,2,0),"") -> Dibromoclorometano
BA116: =IF(IFERROR(SEARCH($BB$1,BB116,1),0)>0,MAX(BA$2:BA115)+1,0) -> 114 | BB116: Diclorometano | BC116: =IFERROR(VLOOKUP(ROWS(BC$3:BC116),$BA$3:$BB$292,2,0),"") -> Diclorometano
BA117: =IF(IFERROR(SEARCH($BB$1,BB117,1),0)>0,MAX(BA$2:BA116)+1,0) -> 115 | BB117: Dieldrina | BC117: =IFERROR(VLOOKUP(ROWS(BC$3:BC117),$BA$3:$BB$292,2,0),"") -> Dieldrina
BA118: =IF(IFERROR(SEARCH($BB$1,BB118,1),0)>0,MAX(BA$2:BA117)+1,0) -> 116 | BB118: Dimetoato | BC118: =IFERROR(VLOOKUP(ROWS(BC$3:BC118),$BA$3:$BB$292,2,0),"") -> Dimetoato
BA119: =IF(IFERROR(SEARCH($BB$1,BB119,1),0)>0,MAX(BA$2:BA118)+1,0) -> 117 | BB119: Dióxido de Carbono | BC119: =IFERROR(VLOOKUP(ROWS(BC$3:BC119),$BA$3:$BB$292,2,0),"") -> Dióxido de Carbono
BA120: =IF(IFERROR(SEARCH($BB$1,BB120,1),0)>0,MAX(BA$2:BA119)+1,0) -> 118 | BB120: Dióxido de Cloro | BC120: =IFERROR(VLOOKUP(ROWS(BC$3:BC120),$BA$3:$BB$292,2,0),"") -> Dióxido de Cloro
BA121: =IF(IFERROR(SEARCH($BB$1,BB121,1),0)>0,MAX(BA$2:BA120)+1,0) -> 119 | BB121: Diurão | BC121: =IFERROR(VLOOKUP(ROWS(BC$3:BC121),$BA$3:$BB$292,2,0),"") -> Diurão
BA122: =IF(IFERROR(SEARCH($BB$1,BB122,1),0)>0,MAX(BA$2:BA121)+1,0) -> 120 | BB122: Dose Indicativa_Cálculo_Radionuclídeos | BC122: =IFERROR(VLOOKUP(ROWS(BC$3:BC122),$BA$3:$BB$292,2,0),"") -> Dose Indicativa_Cálculo_Radionuclídeos
BA123: =IF(IFERROR(SEARCH($BB$1,BB123,1),0)>0,MAX(BA$2:BA122)+1,0) -> 121 | BB123: Dose Indicativa_CI (mS/ano) | BC123: =IFERROR(VLOOKUP(ROWS(BC$3:BC123),$BA$3:$BB$292,2,0),"") -> Dose Indicativa_CI (mS/ano)
BA124: =IF(IFERROR(SEARCH($BB$1,BB124,1),0)>0,MAX(BA$2:BA123)+1,0) -> 122 | BB124: Dureza Total | BC124: =IFERROR(VLOOKUP(ROWS(BC$3:BC124),$BA$3:$BB$292,2,0),"") -> Dureza Total
BA125: =IF(IFERROR(SEARCH($BB$1,BB125,1),0)>0,MAX(BA$2:BA124)+1,0) -> 123 | BB125: Enterococos fecais | BC125: =IFERROR(VLOOKUP(ROWS(BC$3:BC125),$BA$3:$BB$292,2,0),"") -> Enterococos fecais
BA126: =IF(IFERROR(SEARCH($BB$1,BB126,1),0)>0,MAX(BA$2:BA125)+1,0) -> 124 | BB126: Enxofre | BC126: =IFERROR(VLOOKUP(ROWS(BC$3:BC126),$BA$3:$BB$292,2,0),"") -> Enxofre
BA127: =IF(IFERROR(SEARCH($BB$1,BB127,1),0)>0,MAX(BA$2:BA126)+1,0) -> 125 | BB127: Epicloridrina | BC127: =IFERROR(VLOOKUP(ROWS(BC$3:BC127),$BA$3:$BB$292,2,0),"") -> Epicloridrina
BA128: =IF(IFERROR(SEARCH($BB$1,BB128,1),0)>0,MAX(BA$2:BA127)+1,0) -> 126 | BB128: EPTC | BC128: =IFERROR(VLOOKUP(ROWS(BC$3:BC128),$BA$3:$BB$292,2,0),"") -> EPTC
BA129: =IF(IFERROR(SEARCH($BB$1,BB129,1),0)>0,MAX(BA$2:BA128)+1,0) -> 127 | BB129: Escherichia coli | BC129: =IFERROR(VLOOKUP(ROWS(BC$3:BC129),$BA$3:$BB$292,2,0),"") -> Escherichia coli
BA130: =IF(IFERROR(SEARCH($BB$1,BB130,1),0)>0,MAX(BA$2:BA129)+1,0) -> 128 | BB130: Estafilococos Produtores de Coagulase | BC130: =IFERROR(VLOOKUP(ROWS(BC$3:BC130),$BA$3:$BB$292,2,0),"") -> Estafilococos Produtores de Coagulase
BA131: =IF(IFERROR(SEARCH($BB$1,BB131,1),0)>0,MAX(BA$2:BA130)+1,0) -> 129 | BB131: Estafilococos Totais | BC131: =IFERROR(VLOOKUP(ROWS(BC$3:BC131),$BA$3:$BB$292,2,0),"") -> Estafilococos Totais
BA132: =IF(IFERROR(SEARCH($BB$1,BB132,1),0)>0,MAX(BA$2:BA131)+1,0) -> 130 | BB132: Estanho | BC132: =IFERROR(VLOOKUP(ROWS(BC$3:BC132),$BA$3:$BB$292,2,0),"") -> Estanho
BA133: =IF(IFERROR(SEARCH($BB$1,BB133,1),0)>0,MAX(BA$2:BA132)+1,0) -> 131 | BB133: Estreptococos Fecais (Enterococos) | BC133: =IFERROR(VLOOKUP(ROWS(BC$3:BC133),$BA$3:$BB$292,2,0),"") -> Estreptococos Fecais (Enterococos)
BA134: =IF(IFERROR(SEARCH($BB$1,BB134,1),0)>0,MAX(BA$2:BA133)+1,0) -> 132 | BB134: Estrôncio | BC134: =IFERROR(VLOOKUP(ROWS(BC$3:BC134),$BA$3:$BB$292,2,0),"") -> Estrôncio
BA135: =IF(IFERROR(SEARCH($BB$1,BB135,1),0)>0,MAX(BA$2:BA134)+1,0) -> 133 | BB135: Estrôncio 90 | BC135: =IFERROR(VLOOKUP(ROWS(BC$3:BC135),$BA$3:$BB$292,2,0),"") -> Estrôncio 90
BA136: =IF(IFERROR(SEARCH($BB$1,BB136,1),0)>0,MAX(BA$2:BA135)+1,0) -> 134 | BB136: Etião | BC136: =IFERROR(VLOOKUP(ROWS(BC$3:BC136),$BA$3:$BB$292,2,0),"") -> Etião
BA137: =IF(IFERROR(SEARCH($BB$1,BB137,1),0)>0,MAX(BA$2:BA136)+1,0) -> 135 | BB137: Etilbenzeno | BC137: =IFERROR(VLOOKUP(ROWS(BC$3:BC137),$BA$3:$BB$292,2,0),"") -> Etilbenzeno
BA138: =IF(IFERROR(SEARCH($BB$1,BB138,1),0)>0,MAX(BA$2:BA137)+1,0) -> 136 | BB138: Fenantreno | BC138: =IFERROR(VLOOKUP(ROWS(BC$3:BC138),$BA$3:$BB$292,2,0),"") -> Fenantreno
BA139: =IF(IFERROR(SEARCH($BB$1,BB139,1),0)>0,MAX(BA$2:BA138)+1,0) -> 137 | BB139: Fenóis | BC139: =IFERROR(VLOOKUP(ROWS(BC$3:BC139),$BA$3:$BB$292,2,0),"") -> Fenóis
BA140: =IF(IFERROR(SEARCH($BB$1,BB140,1),0)>0,MAX(BA$2:BA139)+1,0) -> 138 | BB140: Ferro | BC140: =IFERROR(VLOOKUP(ROWS(BC$3:BC140),$BA$3:$BB$292,2,0),"") -> Ferro
BA141: =IF(IFERROR(SEARCH($BB$1,BB141,1),0)>0,MAX(BA$2:BA140)+1,0) -> 139 | BB141: Ferro (III) | BC141: =IFERROR(VLOOKUP(ROWS(BC$3:BC141),$BA$3:$BB$292,2,0),"") -> Ferro (III)
BA142: =IF(IFERROR(SEARCH($BB$1,BB142,1),0)>0,MAX(BA$2:BA141)+1,0) -> 140 | BB142: Ferro dissolvido | BC142: =IFERROR(VLOOKUP(ROWS(BC$3:BC142),$BA$3:$BB$292,2,0),"") -> Ferro dissolvido
BA143: =IF(IFERROR(SEARCH($BB$1,BB143,1),0)>0,MAX(BA$2:BA142)+1,0) -> 141 | BB143: Fitoplancton total | BC143: =IFERROR(VLOOKUP(ROWS(BC$3:BC143),$BA$3:$BB$292,2,0),"") -> Fitoplancton total
BA144: =IF(IFERROR(SEARCH($BB$1,BB144,1),0)>0,MAX(BA$2:BA143)+1,0) -> 142 | BB144: Fluoranteno | BC144: =IFERROR(VLOOKUP(ROWS(BC$3:BC144),$BA$3:$BB$292,2,0),"") -> Fluoranteno
BA145: =IF(IFERROR(SEARCH($BB$1,BB145,1),0)>0,MAX(BA$2:BA144)+1,0) -> 143 | BB145: Fluoretos | BC145: =IFERROR(VLOOKUP(ROWS(BC$3:BC145),$BA$3:$BB$292,2,0),"") -> Fluoretos
BA146: =IF(IFERROR(SEARCH($BB$1,BB146,1),0)>0,MAX(BA$2:BA145)+1,0) -> 144 | BB146: Fosfato | BC146: =IFERROR(VLOOKUP(ROWS(BC$3:BC146),$BA$3:$BB$292,2,0),"") -> Fosfato
BA147: =IF(IFERROR(SEARCH($BB$1,BB147,1),0)>0,MAX(BA$2:BA146)+1,0) -> 145 | BB147: Fósforo Total | BC147: =IFERROR(VLOOKUP(ROWS(BC$3:BC147),$BA$3:$BB$292,2,0),"") -> Fósforo Total
BA148: =IF(IFERROR(SEARCH($BB$1,BB148,1),0)>0,MAX(BA$2:BA147)+1,0) -> 146 | BB148: Fósforo Total_[Amostragem Pontual] | BC148: =IFERROR(VLOOKUP(ROWS(BC$3:BC148),$BA$3:$BB$292,2,0),"") -> Fósforo Total_[Amostragem Pontual]
BA149: =IF(IFERROR(SEARCH($BB$1,BB149,1),0)>0,MAX(BA$2:BA148)+1,0) -> 147 | BB149: Fosmete | BC149: =IFERROR(VLOOKUP(ROWS(BC$3:BC149),$BA$3:$BB$292,2,0),"") -> Fosmete
BA150: =IF(IFERROR(SEARCH($BB$1,BB150,1),0)>0,MAX(BA$2:BA149)+1,0) -> 148 | BB150: Glifosato | BC150: =IFERROR(VLOOKUP(ROWS(BC$3:BC150),$BA$3:$BB$292,2,0),"") -> Glifosato
BA151: =IF(IFERROR(SEARCH($BB$1,BB151,1),0)>0,MAX(BA$2:BA150)+1,0) -> 149 | BB151: Heptacloro | BC151: =IFERROR(VLOOKUP(ROWS(BC$3:BC151),$BA$3:$BB$292,2,0),"") -> Heptacloro
BA152: =IF(IFERROR(SEARCH($BB$1,BB152,1),0)>0,MAX(BA$2:BA151)+1,0) -> 150 | BB152: Heptacloro epóxido | BC152: =IFERROR(VLOOKUP(ROWS(BC$3:BC152),$BA$3:$BB$292,2,0),"") -> Heptacloro epóxido
BA153: =IF(IFERROR(SEARCH($BB$1,BB153,1),0)>0,MAX(BA$2:BA152)+1,0) -> 151 | BB153: Hexaclorobenzeno (HCB) | BC153: =IFERROR(VLOOKUP(ROWS(BC$3:BC153),$BA$3:$BB$292,2,0),"") -> Hexaclorobenzeno (HCB)
BA154: =IF(IFERROR(SEARCH($BB$1,BB154,1),0)>0,MAX(BA$2:BA153)+1,0) -> 152 | BB154: Hexaclorobutadieno(HCBD) | BC154: =IFERROR(VLOOKUP(ROWS(BC$3:BC154),$BA$3:$BB$292,2,0),"") -> Hexaclorobutadieno(HCBD)
BA155: =IF(IFERROR(SEARCH($BB$1,BB155,1),0)>0,MAX(BA$2:BA154)+1,0) -> 153 | BB155: Hexaclorociclohexano | BC155: =IFERROR(VLOOKUP(ROWS(BC$3:BC155),$BA$3:$BB$292,2,0),"") -> Hexaclorociclohexano
BA156: =IF(IFERROR(SEARCH($BB$1,BB156,1),0)>0,MAX(BA$2:BA155)+1,0) -> 154 | BB156: Hidrocarbonetos (C10 a C40) | BC156: =IFERROR(VLOOKUP(ROWS(BC$3:BC156),$BA$3:$BB$292,2,0),"") -> Hidrocarbonetos (C10 a C40)
BA157: =IF(IFERROR(SEARCH($BB$1,BB157,1),0)>0,MAX(BA$2:BA156)+1,0) -> 155 | BB157: Hidrocarbonetos Aromáticos Policíclicos (HAP) | BC157: =IFERROR(VLOOKUP(ROWS(BC$3:BC157),$BA$3:$BB$292,2,0),"") -> Hidrocarbonetos Aromáticos Policíclicos (HAP)
BA158: =IF(IFERROR(SEARCH($BB$1,BB158,1),0)>0,MAX(BA$2:BA157)+1,0) -> 156 | BB158: Hidrocarbonetos Dissolvidos e Emulsionados | BC158: =IFERROR(VLOOKUP(ROWS(BC$3:BC158),$BA$3:$BB$292,2,0),"") -> Hidrocarbonetos Dissolvidos e Emulsionados
BA159: =IF(IFERROR(SEARCH($BB$1,BB159,1),0)>0,MAX(BA$2:BA158)+1,0) -> 157 | BB159: Hidrocarbonetos Totais | BC159: =IFERROR(VLOOKUP(ROWS(BC$3:BC159),$BA$3:$BB$292,2,0),"") -> Hidrocarbonetos Totais
BA160: =IF(IFERROR(SEARCH($BB$1,BB160,1),0)>0,MAX(BA$2:BA159)+1,0) -> 158 | BB160: Humidade | BC160: =IFERROR(VLOOKUP(ROWS(BC$3:BC160),$BA$3:$BB$292,2,0),"") -> Humidade
BA161: =IF(IFERROR(SEARCH($BB$1,BB161,1),0)>0,MAX(BA$2:BA160)+1,0) -> 159 | BB161: Imidaclopride | BC161: =IFERROR(VLOOKUP(ROWS(BC$3:BC161),$BA$3:$BB$292,2,0),"") -> Imidaclopride
BA162: =IF(IFERROR(SEARCH($BB$1,BB162,1),0)>0,MAX(BA$2:BA161)+1,0) -> 160 | BB162: Indeno(1,2,3cd)pireno | BC162: =IFERROR(VLOOKUP(ROWS(BC$3:BC162),$BA$3:$BB$292,2,0),"") -> Indeno(1,2,3cd)pireno
BA163: =IF(IFERROR(SEARCH($BB$1,BB163,1),0)>0,MAX(BA$2:BA162)+1,0) -> 161 | BB163: Langelier (IL) | BC163: =IFERROR(VLOOKUP(ROWS(BC$3:BC163),$BA$3:$BB$292,2,0),"") -> Langelier (IL)
BA164: =IF(IFERROR(SEARCH($BB$1,BB164,1),0)>0,MAX(BA$2:BA163)+1,0) -> 162 | BB164: LAS | BC164: =IFERROR(VLOOKUP(ROWS(BC$3:BC164),$BA$3:$BB$292,2,0),"") -> LAS
BA165: =IF(IFERROR(SEARCH($BB$1,BB165,1),0)>0,MAX(BA$2:BA164)+1,0) -> 163 | BB165: Legionella pneumophila | BC165: =IFERROR(VLOOKUP(ROWS(BC$3:BC165),$BA$3:$BB$292,2,0),"") -> Legionella pneumophila
BA166: =IF(IFERROR(SEARCH($BB$1,BB166,1),0)>0,MAX(BA$2:BA165)+1,0) -> 164 | BB166: Legionella spp. | BC166: =IFERROR(VLOOKUP(ROWS(BC$3:BC166),$BA$3:$BB$292,2,0),"") -> Legionella spp.
BA167: =IF(IFERROR(SEARCH($BB$1,BB167,1),0)>0,MAX(BA$2:BA166)+1,0) -> 165 | BB167: Lindano | BC167: =IFERROR(VLOOKUP(ROWS(BC$3:BC167),$BA$3:$BB$292,2,0),"") -> Lindano
BA168: =IF(IFERROR(SEARCH($BB$1,BB168,1),0)>0,MAX(BA$2:BA167)+1,0) -> 166 | BB168: Linurão | BC168: =IFERROR(VLOOKUP(ROWS(BC$3:BC168),$BA$3:$BB$292,2,0),"") -> Linurão
BA169: =IF(IFERROR(SEARCH($BB$1,BB169,1),0)>0,MAX(BA$2:BA168)+1,0) -> 167 | BB169: Lítio | BC169: =IFERROR(VLOOKUP(ROWS(BC$3:BC169),$BA$3:$BB$292,2,0),"") -> Lítio
BA170: =IF(IFERROR(SEARCH($BB$1,BB170,1),0)>0,MAX(BA$2:BA169)+1,0) -> 168 | BB170: m,p -xileno | BC170: =IFERROR(VLOOKUP(ROWS(BC$3:BC170),$BA$3:$BB$292,2,0),"") -> m,p -xileno
BA171: =IF(IFERROR(SEARCH($BB$1,BB171,1),0)>0,MAX(BA$2:BA170)+1,0) -> 169 | BB171: Magnésio | BC171: =IFERROR(VLOOKUP(ROWS(BC$3:BC171),$BA$3:$BB$292,2,0),"") -> Magnésio
BA172: =IF(IFERROR(SEARCH($BB$1,BB172,1),0)>0,MAX(BA$2:BA171)+1,0) -> 170 | BB172: Malatião | BC172: =IFERROR(VLOOKUP(ROWS(BC$3:BC172),$BA$3:$BB$292,2,0),"") -> Malatião
BA173: =IF(IFERROR(SEARCH($BB$1,BB173,1),0)>0,MAX(BA$2:BA172)+1,0) -> 171 | BB173: Mancozebe | BC173: =IFERROR(VLOOKUP(ROWS(BC$3:BC173),$BA$3:$BB$292,2,0),"") -> Mancozebe
BA174: =IF(IFERROR(SEARCH($BB$1,BB174,1),0)>0,MAX(BA$2:BA173)+1,0) -> 172 | BB174: Manganês | BC174: =IFERROR(VLOOKUP(ROWS(BC$3:BC174),$BA$3:$BB$292,2,0),"") -> Manganês
BA175: =IF(IFERROR(SEARCH($BB$1,BB175,1),0)>0,MAX(BA$2:BA174)+1,0) -> 173 | BB175: Matéria Orgânica | BC175: =IFERROR(VLOOKUP(ROWS(BC$3:BC175),$BA$3:$BB$292,2,0),"") -> Matéria Orgânica
BA176: =IF(IFERROR(SEARCH($BB$1,BB176,1),0)>0,MAX(BA$2:BA175)+1,0) -> 174 | BB176: Matéria Seca | BC176: =IFERROR(VLOOKUP(ROWS(BC$3:BC176),$BA$3:$BB$292,2,0),"") -> Matéria Seca
BA177: =IF(IFERROR(SEARCH($BB$1,BB177,1),0)>0,MAX(BA$2:BA176)+1,0) -> 175 | BB177: MCPA | BC177: =IFERROR(VLOOKUP(ROWS(BC$3:BC177),$BA$3:$BB$292,2,0),"") -> MCPA
BA178: =IF(IFERROR(SEARCH($BB$1,BB178,1),0)>0,MAX(BA$2:BA177)+1,0) -> 176 | BB178: MCPP | BC178: =IFERROR(VLOOKUP(ROWS(BC$3:BC178),$BA$3:$BB$292,2,0),"") -> MCPP
BA179: =IF(IFERROR(SEARCH($BB$1,BB179,1),0)>0,MAX(BA$2:BA178)+1,0) -> 177 | BB179: Mercúrio | BC179: =IFERROR(VLOOKUP(ROWS(BC$3:BC179),$BA$3:$BB$292,2,0),"") -> Mercúrio
BA180: =IF(IFERROR(SEARCH($BB$1,BB180,1),0)>0,MAX(BA$2:BA179)+1,0) -> 178 | BB180: Microcistina-LR total | BC180: =IFERROR(VLOOKUP(ROWS(BC$3:BC180),$BA$3:$BB$292,2,0),"") -> Microcistina-LR total
BA181: =IF(IFERROR(SEARCH($BB$1,BB181,1),0)>0,MAX(BA$2:BA180)+1,0) -> 179 | BB181: Microcistinas LR | BC181: =IFERROR(VLOOKUP(ROWS(BC$3:BC181),$BA$3:$BB$292,2,0),"") -> Microcistinas LR
BA182: =IF(IFERROR(SEARCH($BB$1,BB182,1),0)>0,MAX(BA$2:BA181)+1,0) -> 180 | BB182: Microcistinas RR | BC182: =IFERROR(VLOOKUP(ROWS(BC$3:BC182),$BA$3:$BB$292,2,0),"") -> Microcistinas RR
BA183: =IF(IFERROR(SEARCH($BB$1,BB183,1),0)>0,MAX(BA$2:BA182)+1,0) -> 181 | BB183: Microcistinas Totais | BC183: =IFERROR(VLOOKUP(ROWS(BC$3:BC183),$BA$3:$BB$292,2,0),"") -> Microcistinas Totais
BA184: =IF(IFERROR(SEARCH($BB$1,BB184,1),0)>0,MAX(BA$2:BA183)+1,0) -> 182 | BB184: Microcistinas YR | BC184: =IFERROR(VLOOKUP(ROWS(BC$3:BC184),$BA$3:$BB$292,2,0),"") -> Microcistinas YR
BA185: =IF(IFERROR(SEARCH($BB$1,BB185,1),0)>0,MAX(BA$2:BA184)+1,0) -> 183 | BB185: Mineralização Total | BC185: =IFERROR(VLOOKUP(ROWS(BC$3:BC185),$BA$3:$BB$292,2,0),"") -> Mineralização Total
BA186: =IF(IFERROR(SEARCH($BB$1,BB186,1),0)>0,MAX(BA$2:BA185)+1,0) -> 184 | BB186: Molibdénio | BC186: =IFERROR(VLOOKUP(ROWS(BC$3:BC186),$BA$3:$BB$292,2,0),"") -> Molibdénio
BA187: =IF(IFERROR(SEARCH($BB$1,BB187,1),0)>0,MAX(BA$2:BA186)+1,0) -> 185 | BB187: Naftaleno | BC187: =IFERROR(VLOOKUP(ROWS(BC$3:BC187),$BA$3:$BB$292,2,0),"") -> Naftaleno
BA188: =IF(IFERROR(SEARCH($BB$1,BB188,1),0)>0,MAX(BA$2:BA187)+1,0) -> 186 | BB188: Níquel | BC188: =IFERROR(VLOOKUP(ROWS(BC$3:BC188),$BA$3:$BB$292,2,0),"") -> Níquel
BA189: =IF(IFERROR(SEARCH($BB$1,BB189,1),0)>0,MAX(BA$2:BA188)+1,0) -> 187 | BB189: Níquel_PCQA_com Purga | BC189: =IFERROR(VLOOKUP(ROWS(BC$3:BC189),$BA$3:$BB$292,2,0),"") -> Níquel_PCQA_com Purga
BA190: =IF(IFERROR(SEARCH($BB$1,BB190,1),0)>0,MAX(BA$2:BA189)+1,0) -> 188 | BB190: Níquel_PCQA_sem Purga | BC190: =IFERROR(VLOOKUP(ROWS(BC$3:BC190),$BA$3:$BB$292,2,0),"") -> Níquel_PCQA_sem Purga
BA191: =IF(IFERROR(SEARCH($BB$1,BB191,1),0)>0,MAX(BA$2:BA190)+1,0) -> 189 | BB191: Nitratos | BC191: =IFERROR(VLOOKUP(ROWS(BC$3:BC191),$BA$3:$BB$292,2,0),"") -> Nitratos
BA192: =IF(IFERROR(SEARCH($BB$1,BB192,1),0)>0,MAX(BA$2:BA191)+1,0) -> 190 | BB192: Nitrito | BC192: =IFERROR(VLOOKUP(ROWS(BC$3:BC192),$BA$3:$BB$292,2,0),"") -> Nitrito
BA193: =IF(IFERROR(SEARCH($BB$1,BB193,1),0)>0,MAX(BA$2:BA192)+1,0) -> 191 | BB193: Nível Piezométrico | BC193: =IFERROR(VLOOKUP(ROWS(BC$3:BC193),$BA$3:$BB$292,2,0),"") -> Nível Piezométrico
BA194: =IF(IFERROR(SEARCH($BB$1,BB194,1),0)>0,MAX(BA$2:BA193)+1,0) -> 192 | BB194: Número de Colónias a 22 ºC | BC194: =IFERROR(VLOOKUP(ROWS(BC$3:BC194),$BA$3:$BB$292,2,0),"") -> Número de Colónias a 22 ºC
BA195: =IF(IFERROR(SEARCH($BB$1,BB195,1),0)>0,MAX(BA$2:BA194)+1,0) -> 193 | BB195: Número de Colónias a 36 ºC | BC195: =IFERROR(VLOOKUP(ROWS(BC$3:BC195),$BA$3:$BB$292,2,0),"") -> Número de Colónias a 36 ºC
BA196: =IF(IFERROR(SEARCH($BB$1,BB196,1),0)>0,MAX(BA$2:BA195)+1,0) -> 194 | BB196: Óleos e Gorduras | BC196: =IFERROR(VLOOKUP(ROWS(BC$3:BC196),$BA$3:$BB$292,2,0),"") -> Óleos e Gorduras
BA197: =IF(IFERROR(SEARCH($BB$1,BB197,1),0)>0,MAX(BA$2:BA196)+1,0) -> 195 | BB197: Óleos e Gorduras [Amostragem Pontual] | BC197: =IFERROR(VLOOKUP(ROWS(BC$3:BC197),$BA$3:$BB$292,2,0),"") -> Óleos e Gorduras [Amostragem Pontual]
BA198: =IF(IFERROR(SEARCH($BB$1,BB198,1),0)>0,MAX(BA$2:BA197)+1,0) -> 196 | BB198: Óleos Minerais | BC198: =IFERROR(VLOOKUP(ROWS(BC$3:BC198),$BA$3:$BB$292,2,0),"") -> Óleos Minerais
BA199: =IF(IFERROR(SEARCH($BB$1,BB199,1),0)>0,MAX(BA$2:BA198)+1,0) -> 197 | BB199: Ometoato | BC199: =IFERROR(VLOOKUP(ROWS(BC$3:BC199),$BA$3:$BB$292,2,0),"") -> Ometoato
BA200: =IF(IFERROR(SEARCH($BB$1,BB200,1),0)>0,MAX(BA$2:BA199)+1,0) -> 198 | BB200: Ovos de Parasitas Intestinais | BC200: =IFERROR(VLOOKUP(ROWS(BC$3:BC200),$BA$3:$BB$292,2,0),"") -> Ovos de Parasitas Intestinais
... 92 more rows
